Cogmind - Beta 10.2 --- EXPLORER MODE // 2021.02.05 @ 19:31:14 Player: TLFP Result: Destroyed self via exploding Nuclear Reactor Performance ------------- Evolutions (5) 2500 Regions Visited (18) 3600 Robots Destroyed (119) 595 Value Destroyed (5727) 5727 Prototype IDs (18) 360 Alien Tech Used (0) 0 Bonus (3801) 3801 TOTAL SCORE: 16583 Bonus ------- High Alert Combat Kills 117 Follower Combat Kills 604 Entered Garrisons 800 Used RIF Installer 2000 Met Data Miner 300 Friendly Fire -20 Cogmind --------- Core Integrity 0/1000 Matter 292/300 Energy 310/310 System Corruption 0% Temperature Cool (0) Movement Rolling (100) Ox1 Location -5/Factory Parts ------- > --- POWER (1) -------- Fission Core > --- PROPULSION (3) --- Wheel Compact Wheel > --- UTILITY (12) ----- Medium Storage Unit Enhanced Optical Array Improved Medium Armor Plating Hacking Suite Improved System Shield > --- WEAPON (2) ------- Gauss Rifle > --- INVENTORY (8) ---- Micro Nuclear Core Micro Fission Core Wave Gun Peak State ------------ > --- POWER ------------ Cold Fusion Reactor > --- PROPULSION ------- Gravmag System Gravmag System Combat Airjet > --- UTILITY ---------- Medium Storage Unit Enhanced Optical Array Layered Light Armor Plating Hacking Suite System Shield Relay Coupler [NC] Relay Coupler [Brawler] Relay Coupler [Sentry] Relay Coupler [Demolisher] Relay Coupler [Hunter] > --- WEAPON ----------- Tesla Rifle Improved Remote Datajack > --- INVENTORY -------- Micro Nuclear Core Improved Hover Unit Improved Cooling System Improved Trap Extractor Heavy Particle Gun Proton Cannon Heavy Missile Launcher Improved Datajack [Rating: 67] Favorites ----------- Power Cold Fusion Reactor Engine Improved Ion Engine Power Core Light Nuclear Core Reactor Cold Fusion Reactor Propulsion Gravmag System Treads Light Treads Leg Aluminum Leg Wheel Wheel Hover Unit Gravmag System Flight Unit VTOL Module Utility Relay Coupler [Brawler] Device Long-range Terrain Scanner Storage High-capacity Storage Unit Processor Seismic Analyzer Hackware Relay Coupler [Brawler] Protection Power Shielding Weapon Ion Cannon Energy Gun Heavy Particle Gun Energy Cannon Ion Cannon Ballistic Gun Assault Rifle Ballistic Cannon Gauss Cannon Launcher Mini Grenade Launcher Special Weapon Improved Remote Datajack Special Melee Weapon Datajack Build | -11 -10 -9 -8 -8 -8 -8 -7 -7 -7 -7 -6 -6 -6 -6 -6 -6 -5 -5 ------- Run | Scr Mat Mat Mat Gar Mat Gar Fac Was Fac Gar Fac Gar Fac Low Low Dat Pro Fac Slots Evolved 11 | . 1 2 2 . . . 2 . . . 2 . . . . . . 2 Power . | . . . . . . . . . . . . . . . . . . . Propulsion 1 | . . . . . . . . . . . 1 . . . . . . . Utility 10 | . 1 2 2 . . . 2 . . . 1 . . . . . . 2 Weapon . | . . . . . . . . . . . . . . . . . . . Parts Attached 189 | . 13 13 8 11 5 13 26 4 19 2 13 10 5 6 1 . 19 21 Power 26 | . 1 3 . 2 . 1 4 . 1 . 3 . 2 . . . 5 4 Engine 12 | . 1 3 . 1 . 1 4 . 1 . 1 . . . . . . . Core 9 | . . . . 1 . . . . . . 1 . 1 . . . 2 4 Reactor 5 | . . . . . . . . . . . 1 . 1 . . . 3 . Propulsion 39 | . 2 4 . 2 1 1 9 2 4 . 4 2 . 1 . . 4 3 Treads 15 | . 2 2 . 2 1 1 6 . . . . . . . . . 1 . Leg 9 | . . 2 . . . . 3 2 2 . . . . . . . . . Wheel 2 | . . . . . . . . . . . . . . . . . . 2 Hover 12 | . . . . . . . . . 2 . 4 2 . 1 . . 3 . Flight 1 | . . . . . . . . . . . . . . . . . . 1 Utility 59 | . 7 3 4 2 1 5 6 . 6 2 4 4 3 2 . . 4 6 Device 14 | . 4 . 2 . . . 2 . 2 . . . . . . . 1 3 Storage 9 | . 1 . 1 . . . 1 . 1 . . . 1 2 . . 1 1 Processor 3 | . . 2 . . . . . . . . . . 1 . . . . . Hackware 23 | . . . . 1 1 5 2 . 3 2 4 4 . . . . . 1 Protection 10 | . 2 1 1 1 . . 1 . . . . . 1 . . . 2 1 Artifact . | . . . . . . . . . . . . . . . . . . . Weapon 65 | . 3 3 4 5 3 6 7 2 8 . 2 4 . 3 1 . 6 8 Energy Gun 9 | . . 1 . . . . . . 3 . . 1 . 2 . . 1 1 Energy Cannon 16 | . . . 3 2 . 2 2 . . . . 1 . 1 . . 2 3 Ballistic Gun 15 | . 1 2 . 1 1 1 1 1 3 . 1 . . . . . . 3 Ballistic Cannon 1 | . . . . . . . . . 1 . . . . . . . . . Launcher 14 | . 2 . 1 2 . 2 3 1 . . . 1 . . . . 1 1 Special Weapon 5 | . . . . . . . . . 1 . 1 1 . . 1 . 1 . Impact Weapon . | . . . . . . . . . . . . . . . . . . . Slashing Weapon . | . . . . . . . . . . . . . . . . . . . Piercing Weapon . | . . . . . . . . . . . . . . . . . . . Special Melee Weapon 5 | . . . . . 2 1 1 . . . . . . . . . 1 . Unidentified Prototypes 5 | . . . . . . . . 1 1 . 1 . 1 . . . 1 . Parts Lost 80 | . . 4 1 6 . 3 16 4 . . 3 4 . 2 . . 19 18 Power 10 | . . 1 . 1 . 1 2 . . . 1 . . . . . 2 2 Propulsion 22 | . . 1 . 1 . . 6 3 . . . 2 . 1 . . 5 3 Utility 21 | . . . 1 3 . 1 1 . . . 1 1 . . . . 6 7 Weapon 27 | . . 2 . 1 . 1 7 1 . . 1 1 . 1 . . 6 6 Highest Loss Streak 9 | . . 2 1 5 . 2 5 4 . . 1 2 . 1 . . 7 9 Average Slot Usage (%) 89 | . 92 99 97 81 96 97 91 78 91 98 97 97 100 99 100 100 68 54 Engine 3 | . 11 10 8 3 . 2 5 4 4 7 1 . . . . . . . Core 1 | . . . . 5 8 4 . . . . 2 . . . . . . 3 Reactor 1 | . . . . . . . . . . . 1 6 6 6 6 6 3 . Treads 6 | . 9 19 16 10 16 16 10 . . . . . . . . . 1 . Leg 1 | . 13 . . . . . 2 7 5 . . . . . . . . . Hover 6 | . . . . . . . . . 7 14 18 17 18 17 18 18 8 3 Device 3 | . 9 10 10 5 . . 1 7 5 7 6 1 . . . . . 5 Storage 9 | . 12 10 16 16 16 16 14 7 4 7 6 6 6 6 6 6 4 5 Processor 7 | . . 20 16 16 16 13 7 7 . . . . 3 6 6 6 6 5 Hackware 28 | . . . . . 12 25 33 35 51 48 47 52 48 43 43 43 34 19 Protection 4 | . 11 10 11 6 8 . 4 . . . . . 3 6 6 6 3 1 Energy Gun 2 | . 4 1 . . . . . . 5 7 1 2 . 7 7 6 2 . Energy Cannon 2 | . . . 4 8 2 5 3 7 . . . 2 6 2 . . 1 . Ballistic Gun 3 | . 11 16 8 1 1 3 . . 3 . 4 . . . . . . 2 Launcher 2 | . 6 2 2 6 8 1 5 . . . . 2 . . . . . 1 Special Weapon 1 | . . . . . . . . . 3 7 6 3 6 2 4 6 1 . Naked Turns . | . . . . . . . . . . . . . . . . . . . Heaviest Build 88 | 16 40 51 88 88 77 83 86 73 22 22 26 30 34 38 33 33 37 31 Greatest Support 56 | 20 40 40 40 40 43 45 56 28 40 22 42 41 41 44 44 44 44 34 Greatest Overweight (x) 10 | . 10 2 2 3 1 1 4 2 2 . 1 1 . . . . 8 7 Average Overweight (x) . | . . . 1 2 1 1 1 . . . . . . . . . . 1 Largest Inventory Capacity 20 | . 12 12 20 20 20 20 20 18 6 6 6 6 8 12 8 8 8 8 Average Capacity 11 | . 10 12 20 20 20 20 19 11 5 6 6 6 6 8 8 8 7 8 Most Carried 20 | . 12 12 15 18 20 20 20 17 6 6 6 6 8 9 8 8 8 8 Average Carried 10 | . 9 10 12 16 17 19 17 11 4 5 5 5 6 7 8 8 6 4 Final Capacity 20 | 8 12 12 20 20 20 20 18 4 6 6 6 6 8 8 8 8 8 8 Final Carried 20 | 7 11 12 14 16 20 18 17 4 6 6 6 6 8 8 8 8 4 3 Class Distribution -------------------- 55% | Hacker-Mutant 44% | Bothacker-Mutant Dominant Class ---------------- Hacker-Mutant | -10/Materials Hacker-Mutant | -9/Materials Hacker-Mutant | -8/Materials Hacker-Mutant | -8/Garrison Bothacker-Mutant | -8/Materials Bothacker-Mutant | -8/Garrison Hacker-Mutant | -7/Factory Hacker-Mutant | -7/Waste Bothacker-Mutant | -7/Factory Bothacker-Mutant | -7/Garrison Bothacker-Mutant | -6/Factory Bothacker-Mutant | -6/Garrison Bothacker-Mutant | -6/Factory Bothacker-Mutant | -6/Lower Caves Bothacker-Mutant | -6/Lower Caves Bothacker-Mutant | -6/Data Miner Hacker-Mutant | -5/Proximity Caves Hacker-Mutant | -5/Factory Resources | -11 -10 -9 -8 -8 -8 -8 -7 -7 -7 -7 -6 -6 -6 -6 -6 -6 -5 -5 ----------- Run | Scr Mat Mat Mat Gar Mat Gar Fac Was Fac Gar Fac Gar Fac Low Low Dat Pro Fac Matter Collected 3372 | 190 38 440 113 230 107 239 327 41 289 . 437 146 120 99 24 . 74 458 Remotely 212 | . . . 81 131 . . . . . . . . . . . . . . Salvage Created 4140 | . 109 664 175 411 51 213 386 . 263 . 326 303 . 50 122 . 229 838 Parts 258 | . 13 50 11 28 1 14 28 . 17 . 18 8 . 5 2 . 12 51 Haulers Intercepted 1 | . . . 1 . . . . . . . . . . . . . . . Recyclers Shooed 10 | . . 2 1 . . . . . 2 . 1 . . . . . . 4 Parts Field Recycled . | . . . . . . . . . . . . . . . . . . . Retrieved Matter . | . . . . . . . . . . . . . . . . . . . Parts Self-Destructed . | . . . . . . . . . . . . . . . . . . . Prevented . | . . . . . . . . . . . . . . . . . . . Kills | -11 -10 -9 -8 -8 -8 -8 -7 -7 -7 -7 -6 -6 -6 -6 -6 -6 -5 -5 ------- Run | Scr Mat Mat Mat Gar Mat Gar Fac Was Fac Gar Fac Gar Fac Low Low Dat Pro Fac Combat Hostiles Destroyed 102 | . 3 19 5 16 2 7 9 . 3 . 6 7 . 1 2 . 4 18 Guns 51 | . 1 18 2 3 2 3 . . 3 . 6 2 . 1 1 . 1 8 Cannons 21 | . . . . 9 . 2 5 . . . . . . . . . . 5 AOE 28 | . 2 1 3 4 . 2 4 . . . . 5 . . 1 . 1 5 Classes Destroyed 16 | . 4 2 2 1 1 . 3 . . . . 1 . . . . 2 . Worker 5 | . . . . . . . 1 . 1 . . . . . . . . 3 Builder 2 | . 1 . . . . . 1 . . . . . . . . . . . Tunneler 2 | . . . . . . . 1 . . . . . . . . . . 1 Hauler 1 | . . . 1 . . . . . . . . . . . . . . . Recycler 3 | . . . 1 . . . . . 1 . . . . . . . . 1 Operator 2 | . . 1 . . . . 1 . . . . . . . . . . . Watcher 2 | . 1 . . . . . . . . . . . . . . . . 1 Swarmer 34 | . 2 8 2 8 . 2 . . . . . . . . . . . 12 Grunt 38 | . 1 5 2 7 1 3 6 . . . 4 5 . . 2 . . 2 Brawler 2 | . . . . 1 . . . . . . . 1 . . . . . . Duelist 1 | . . . . . . . . . . . . 1 . . . . . . Protector 1 | . . . . . . . . . . . . . . . . . 1 . Sentry 14 | . . 6 1 . . 2 1 . 1 . . . . . . . . 3 Demolisher 1 | . . . . . . . . . . . . . . . . . 1 . Hunter 3 | . . . . . . . 1 . . . . . . . . . 1 1 Programmer 8 | . . . . . 1 . 1 . 2 . 2 . . 1 . . 1 . Best Kill Streak 6 | . 2 4 6 6 2 5 3 . 2 . 3 5 . 1 2 . 1 5 Combat Bots Only 6 | . 2 4 4 6 2 5 3 . 1 . 3 5 . 1 2 . 1 4 Max Kills in Single Turn 2 | . 2 2 2 2 1 2 2 . 2 . 2 2 . 1 1 . 1 2 Gunslinging 1 | . . 1 . . . . . . . . . . . . . . . . Exploded 2 | . 2 1 1 2 . 1 1 . . . . 2 . . 1 . 1 2 Melee . | . . . . . . . . . . . . . . . . . . . Uniques/NPCs Destroyed . | . . . . . . . . . . . . . . . . . . . Combat | -11 -10 -9 -8 -8 -8 -8 -7 -7 -7 -7 -6 -6 -6 -6 -6 -6 -5 -5 -------- Run | Scr Mat Mat Mat Gar Mat Gar Fac Was Fac Gar Fac Gar Fac Low Low Dat Pro Fac Damage Taken 10101 | . 104 808 414 566 134 768 1329 120 191 64 389 327 54 372 37 . 1742 2682 Core 2555 | . 54 82 28 103 39 135 205 34 60 27 84 49 . 45 13 . 550 1047 Absorbed by Shields 24 | . . . . . . . . . . . 24 . . . . . . . Core Remaining (%) 61 | 100 78 79 . . . 44 . . . 53 . . . . . . 12 . Volleys Fired 402 | . 9 67 24 24 11 14 25 3 33 9 35 26 8 11 7 . 27 69 Largest 2 | . 2 2 2 2 1 2 2 1 2 1 1 2 1 2 1 . 2 2 Hottest 140 | . 70 76 53 120 60 120 130 28 83 55 55 120 63 140 65 . 140 98 Shots Fired 556 | . 16 112 36 43 11 26 37 3 41 9 35 31 8 21 7 . 36 84 Gun 346 | . 15 111 29 3 10 8 3 3 33 1 20 9 . 15 5 . 20 61 Cannon 116 | . . . . 33 1 12 22 . 3 . . 8 4 5 . . 11 17 Launcher 51 | . 1 1 7 7 . 6 12 . . . . 7 . . . . 4 6 Special 43 | . . . . . . . . . 5 8 15 7 4 1 2 . 1 . Kinetic 240 | . 9 97 29 3 10 8 3 3 16 . 18 . . . . . . 44 Thermal 153 | . 6 14 . 33 1 12 22 . 20 1 2 9 . 7 . . 9 17 Explosive 51 | . 1 1 7 7 . 6 12 . . . . 7 . . . . 4 6 Electromagnetic 69 | . . . . . . . . . . . . 8 4 13 5 . 22 17 Robot Hit Streak 51 | . 12 51 22 11 13 28 15 20 26 10 41 13 19 11 14 . 11 23 Robot Miss Streak 2 | . 2 1 1 1 1 1 2 . 2 . 1 1 1 1 1 . 1 1 Penetration Max 1 | . . . . . . . . . . . . . . . . . . 1 Secondary Targets 5 | . . 4 1 . . . . . . . . . . . . . . . Max Gunslinging Chain 1 | . . 1 1 . . . . . . . . . . . . . . . Shots Hit Robots 460 | . 13 98 32 23 13 22 36 3 27 8 34 17 7 20 6 . 32 69 Core Hits 261 | . 8 40 15 23 5 15 23 1 16 . 34 15 1 4 3 . 9 49 Critical Hits 2 | . . . . 1 . . . . . . . . . . . . 1 . Critical Kills 1 | . . . . 1 . . . . . . . . . . . . . . Critical Parts Destroyed . | . . . . . . . . . . . . . . . . . . . Melee Attacks 22 | . . . . . 3 10 8 . . . . . . . . . 1 . Impact . | . . . . . . . . . . . . . . . . . . . Slashing . | . . . . . . . . . . . . . . . . . . . Piercing . | . . . . . . . . . . . . . . . . . . . Sneak Attacks 7 | . . . . . 2 . 5 . . . . . . . . . . . Combat Hostiles 1 | . . . . . 1 . . . . . . . . . . . . . Follow-up Attacks . | . . . . . . . . . . . . . . . . . . . Damage Inflicted 11337 | . 272 1148 778 1037 257 475 1244 121 551 . 691 733 81 311 146 . 688 2804 Guns 5466 | . 166 1125 344 36 257 123 . 121 551 . 691 169 . 220 100 . 318 1245 Cannons 2085 | . . . . 479 . 117 531 . . . . . 79 91 . . 181 607 Explosions 3765 | . 106 23 434 522 . 235 713 . . . . 564 . . 46 . 189 933 Melee . | . . . . . . . . . . . . . . . . . . . Ramming 21 | . . . . . . . . . . . . . 2 . . . . 19 Kinetic 3709 | . 104 935 344 36 257 123 . 121 180 . 654 . . . . . . 955 Thermal 3047 | . 62 190 . 479 . 117 531 . 371 . 37 169 . 128 46 . 179 738 Explosive 3588 | . 106 23 434 522 . 235 713 . . . . 564 . . . . 189 802 Electromagnetic 972 | . . . . . . . . . . . . . 79 183 100 . 320 290 Impact . | . . . . . . . . . . . . . . . . . . . Slashing . | . . . . . . . . . . . . . . . . . . . Piercing . | . . . . . . . . . . . . . . . . . . . Highest Corruption 4 | . . . . . 2 2 2 2 4 4 1 1 1 1 1 1 2 . Average Corruption 1 | . . . . . 1 2 1 2 2 4 1 1 1 1 1 1 1 . Corruption Purged . | . . . . . . . . . . . . . . . . . . . Effects 37 | . . . . . . 6 6 1 10 3 . 1 2 1 2 . 5 . Message Errors 10 | . . . . . . . 3 . 2 . . . 2 . . . 3 . Matter Fused 4 | . . . . . . . . . 4 . . . . . . . . . Heat Flow Errors 5 | . . . . . . 1 2 . . 2 . . . . . . . . Energy Discharges 6 | . . . . . . 2 1 . 1 . . . . . . . 2 . Data Loss (minor) 6 | . . . . . . 2 . 1 1 . . 1 . . 1 . . . Targeting Errors 6 | . . . . . . 1 . . 2 1 . . . 1 1 . . . Overload Shots . | . . . . . . . . . . . . . . . . . . . Overflow Damage 136 | . . . 25 10 . . 29 . . . . 13 . . . . . 59 Projectiles 24 | . . . . 3 . . 11 . . . . . . . . . . 10 Explosions 112 | . . . 25 7 . . 18 . . . . 13 . . . . . 49 Melee . | . . . . . . . . . . . . . . . . . . . Knockbacks . | . . . . . . . . . . . . . . . . . . . Impact . | . . . . . . . . . . . . . . . . . . . Kinetic . | . . . . . . . . . . . . . . . . . . . Secondary . | . . . . . . . . . . . . . . . . . . . Self-Inflicted Damage 347 | . . . 92 42 . 35 68 . . . . 4 1 . . . . 105 Shots 14 | . . . 5 2 . 1 3 . . . . 1 . . . . . 2 Rammed 6 | . . . . . . . . . . . . . 1 . . . . 5 Targets Rammed 6 | . . . . . . . . . . . . . 1 . . . . 5 Kicked . | . . . . . . . . . . . . . . . . . . . Crushed . | . . . . . . . . . . . . . . . . . . . Highest Temperature 325 | . 78 274 25 325 12 225 280 . 36 151 6 96 20 120 35 . 100 157 Average Temperature 62 | . 37 86 13 122 9 53 97 . 13 52 4 36 10 46 22 . 28 51 Received Heat Transfer 3081 | . 39 423 216 342 81 414 498 . 30 36 210 207 6 72 18 . 21 468 Siege Activations . | . . . . . . . . . . . . . . . . . . . Robots Corrupted 2 | . . . . . . . . . . . . . . . . . 2 . Combat Hostiles 2 | . . . . . . . . . . . . . . . . . 2 . Parts Fried 5 | . . . . . . . . . . . . . . . . . 2 3 Impact Corruptions . | . . . . . . . . . . . . . . . . . . . Robots Melted . | . . . . . . . . . . . . . . . . . . . Combat Hostiles . | . . . . . . . . . . . . . . . . . . . Parts Melted 13 | . . 1 . 1 . . . . 3 . . . . . . . 6 2 Heat Transferred 4549 | . 185 481 . 777 . 185 703 . 629 . 74 259 . 222 50 . 259 725 Parts Sabotaged . | . . . . . . . . . . . . . . . . . . . Parts Stolen . | . . . . . . . . . . . . . . . . . . . Parts Stripped . | . . . . . . . . . . . . . . . . . . . Power Chain Reactions 2 | . . . . . . . . . . . . . . . 1 . . 1 Missiles Intercepted . | . . . . . . . . . . . . . . . . . . . Alert | -11 -10 -9 -8 -8 -8 -8 -7 -7 -7 -7 -6 -6 -6 -6 -6 -6 -5 -5 ------- Run | Scr Mat Mat Mat Gar Mat Gar Fac Was Fac Gar Fac Gar Fac Low Low Dat Pro Fac Peak Influence 660 | . 92 410 301 660 310 506 222 22 103 155 129 290 116 . . . . 441 Initial 235 | . . . 75 148 235 153 196 22 . . 50 58 112 . . . . 43 Average 162 | . 24 173 192 454 252 347 109 8 17 66 64 177 68 . . . . 253 Maximum Alert Level 2 | . . 2 1 2 1 2 1 . . . . 1 . . . . . 2 Low Security (%) 63 | . 100 50 45 6 . 19 75 100 100 100 100 51 100 . . . . 28 Level 1 27 | . . 44 54 41 100 40 24 . . . . 48 . . . . . 67 Level 2 9 | . . 5 . 52 . 40 . . . . . . . . . . . 3 Level 3 . | . . . . . . . . . . . . . . . . . . . Level 4 . | . . . . . . . . . . . . . . . . . . . Level 5 . | . . . . . . . . . . . . . . . . . . . High Security . | . . . . . . . . . . . . . . . . . . . Max Security . | . . . . . . . . . . . . . . . . . . . Squads Dispatched 17 | . . 1 1 . 1 . 4 . 2 . 4 . 1 . . . . 3 Investigation 2 | . . . . . . . 1 . . . 1 . . . . . . . Extermination 5 | . . . . . . . 1 . 2 . 1 . . . . . . 1 Reinforcement 8 | . . 1 1 . 1 . 2 . . . 1 . 1 . . . . 1 Assault . | . . . . . . . . . . . . . . . . . . . Garrison 2 | . . . . . . . . . . . 1 . . . . . . 1 Intercept . | . . . . . . . . . . . . . . . . . . . Construction Impeded 2 | . . . . . . . 1 . . . 1 . . . . . . . Haulers Reinforced 1 | . . . . . . . . . . . . . 1 . . . . . Alert ID Control Effect 9 | . . . . . . . . . . 2 2 1 . 2 . . 2 . Stealth | -11 -10 -9 -8 -8 -8 -8 -7 -7 -7 -7 -6 -6 -6 -6 -6 -6 -5 -5 --------- Run | Scr Mat Mat Mat Gar Mat Gar Fac Was Fac Gar Fac Gar Fac Low Low Dat Pro Fac Distress Signals 14 | . . 1 1 . . . 1 . . . . . . . . . 9 2 Communications Jammed 26 | . . . . . . . . . . . . . . . . . 26 . Distress Signals 26 | . . . . . . . . . . . . . . . . . 26 . Times Spotted 233 | . 5 27 7 16 5 23 17 6 3 16 20 14 5 3 3 . 25 38 Peak Tracking Total 9 | . 2 8 5 6 2 9 4 6 2 9 4 8 1 1 3 . 7 8 Tactical Retreats 20 | . . 2 . 1 . 1 1 . . 3 1 2 . . . . 3 6 Traps | -11 -10 -9 -8 -8 -8 -8 -7 -7 -7 -7 -6 -6 -6 -6 -6 -6 -5 -5 ------- Run | Scr Mat Mat Mat Gar Mat Gar Fac Was Fac Gar Fac Gar Fac Low Low Dat Pro Fac Traps Triggered 26 | . 6 . . 3 . 6 5 . 2 . 2 1 1 . . . . . Indirectly . | . . . . . . . . . . . . . . . . . . . Trap Hack Attempts . | . . . . . . . . . . . . . . . . . . . Triggered . | . . . . . . . . . . . . . . . . . . . Disarmed . | . . . . . . . . . . . . . . . . . . . Reprogrammed . | . . . . . . . . . . . . . . . . . . . Reused . | . . . . . . . . . . . . . . . . . . . Traps Extracted . | . . . . . . . . . . . . . . . . . . . Installed . | . . . . . . . . . . . . . . . . . . . Triggered 2 | . . . . . . . . . . . . . . . . . 2 . Machines | -11 -10 -9 -8 -8 -8 -8 -7 -7 -7 -7 -6 -6 -6 -6 -6 -6 -5 -5 ---------- Run | Scr Mat Mat Mat Gar Mat Gar Fac Was Fac Gar Fac Gar Fac Low Low Dat Pro Fac Machines Disabled 12 | . . . 2 2 . 3 . . . 1 . 2 . . . . . 2 Max in Single Turn 2 | . . . 2 1 . 1 . . . 1 . 1 . . . . . 2 Garrison Relay 8 | . . . . 2 . 3 . . . 1 . 2 . . . . . . Machines Sabotaged . | . . . . . . . . . . . . . . . . . . . Garrisons Compromised . | . . . . . . . . . . . . . . . . . . . Overloaded Fab Kills . | . . . . . . . . . . . . . . . . . . . Fab Network Shutdowns . | . . . . . . . . . . . . . . . . . . . Hacking | -11 -10 -9 -8 -8 -8 -8 -7 -7 -7 -7 -6 -6 -6 -6 -6 -6 -5 -5 --------- Run | Scr Mat Mat Mat Gar Mat Gar Fac Was Fac Gar Fac Gar Fac Low Low Dat Pro Fac Machines Accessed 28 | . 2 2 2 . 2 . 2 . 6 . 6 . 2 . . 4 . . Terminals 15 | . 2 1 1 . 1 . 2 . 2 . 5 . 1 . . . . . Fabricators 3 | . . . . . . . . . 2 . . . 1 . . . . . Repair Stations . | . . . . . . . . . . . . . . . . . . . Recycling Units . | . . . . . . . . . . . . . . . . . . . Scanalyzers 2 | . . 1 . . . . . . 1 . . . . . . . . . Garrison Access 4 | . . . 1 . 1 . . . 1 . 1 . . . . . . . Total Hacks 81 | . 3 6 4 . 8 . 4 . 10 . 15 . 3 . . 28 . . Successful 57 | . . 5 2 . 4 . 1 . 6 . 9 . 2 . . 28 . . Failed 24 | . 3 1 2 . 4 . 3 . 4 . 6 . 1 . . . . . Catastrophic 6 | . 2 . . . 1 . 1 . . . 2 . . . . . . . Database Lockouts . | . . . . . . . . . . . . . . . . . . . Manual 25 | . 3 2 2 . 5 . 4 . 1 . 6 . 2 . . . . . Terminals 33 | . 3 2 2 . 4 . 4 . 3 . 13 . 2 . . . . . Fabricators 3 | . . . . . . . . . 2 . . . 1 . . . . . Repair Stations . | . . . . . . . . . . . . . . . . . . . Recycling Units . | . . . . . . . . . . . . . . . . . . . Scanalyzers 8 | . . 4 . . . . . . 4 . . . . . . . . . Garrison Access 9 | . . . 2 . 4 . . . 1 . 2 . . . . . . . Terminal Hacks 39 | . . 1 1 . . . 1 . 1 . 6 . 1 . . 28 . . Record 11 | . . . . . . . . . . . . . . . . 11 . . Part Schematic 8 | . . . . . . . . . . . . . . . . 8 . . Robot Schematic 6 | . . . . . . . . . . . . . . . . 6 . . Robot Analysis 1 | . . . . . . . . . . . 1 . . . . . . . Prototype ID Bank 3 | . . . . . . . . . . . . . . . . 3 . . Level Access Points 1 | . . 1 . . . . . . . . . . . . . . . . Branch Access Points 1 | . . . . . . . . . . . 1 . . . . . . . Terminal Index 1 | . . . . . . . 1 . . . . . . . . . . . Scanalyzer Index 1 | . . . . . . . . . . . 1 . . . . . . . Garrison Index 1 | . . . 1 . . . . . . . . . . . . . . . Unreport Threat 3 | . . . . . . . . . 1 . 1 . 1 . . . . . Locate Traps 1 | . . . . . . . . . . . 1 . . . . . . . Zone Layout 1 | . . . . . . . . . . . 1 . . . . . . . Fabricator Hacks 3 | . . . . . . . . . 2 . . . 1 . . . . . Network Status 1 | . . . . . . . . . 1 . . . . . . . . . Build 2 | . . . . . . . . . 1 . . . 1 . . . . . Repair Station Hacks . | . . . . . . . . . . . . . . . . . . . Recycling Unit Hacks . | . . . . . . . . . . . . . . . . . . . Scanalyzer 6 | . . 4 . . . . . . 2 . . . . . . . . . Insert Component 3 | . . 2 . . . . . . 1 . . . . . . . . . Analyze 3 | . . 2 . . . . . . 1 . . . . . . . . . Garrison Access Hacks 6 | . . . 1 . 3 . . . 1 . 1 . . . . . . . Unlock Access 4 | . . . 1 . 1 . . . 1 . 1 . . . . . . . Coupler Status 2 | . . . . . 2 . . . . . . . . . . . . . Unauthorized Hacks 3 | . . . . . 1 . . . . . 2 . . . . . . . Terminals 1 | . . . . . . . . . . . 1 . . . . . . . Assimilate 1 | . . . . . . . . . . . 1 . . . . . . . Fabricators . | . . . . . . . . . . . . . . . . . . . Repair Stations . | . . . . . . . . . . . . . . . . . . . Recycling Units . | . . . . . . . . . . . . . . . . . . . Scanalyzers . | . . . . . . . . . . . . . . . . . . . Garrison Access 2 | . . . . . 1 . . . . . 1 . . . . . . . Restock 2 | . . . . . 1 . . . . . 1 . . . . . . . Data Cores Recovered 2 | . . 1 . . . . . . . . . . 1 . . . . . Used 1 | . . 1 . . . . . . . . . . . . . . . . Hacking Detections 19 | . 2 1 1 . 1 . 2 . 6 . 5 . 1 . . . . . Full Trace Events 1 | . . . . . . . . . . . 1 . . . . . . . Feedback Events . | . . . . . . . . . . . . . . . . . . . Feedback Blocked . | . . . . . . . . . . . . . . . . . . . Robot Schematics Acquired 6 | . . . . . . . . . . . . . . . . 6 . . Robots Built 3 | . . . . . . . . . . . . . 3 . . . . . Matter 285 | . . . . . . . . . . . . . 285 . . . . . Time 152 | . . . . . . . . . . . . . 152 . . . . . Total Robot Build Rating 15 | . . . . . . . . . . . . . 15 . . . . . Part Schematics Acquired 11 | . . 2 . . . . . . 1 . . . . . . 8 . . Parts Built 2 | . . . . . . . . . 2 . . . . . . . . . Matter 168 | . . . . . . . . . 168 . . . . . . . . . Time 28 | . . . . . . . . . 28 . . . . . . . . . Total Part Build Rating 8 | . . . . . . . . . 8 . . . . . . . . . Parts Repaired . | . . . . . . . . . . . . . . . . . . . Time . | . . . . . . . . . . . . . . . . . . . Parts Recycled . | . . . . . . . . . . . . . . . . . . . Recycled Matter . | . . . . . . . . . . . . . . . . . . . Retrieved Matter . | . . . . . . . . . . . . . . . . . . . Retrieved Components . | . . . . . . . . . . . . . . . . . . . Parts Scanalyzed 3 | . . 2 . . . . . . 1 . . . . . . . . . Part Schematics Acquired 3 | . . 2 . . . . . . 1 . . . . . . . . . Parts Damaged . | . . . . . . . . . . . . . . . . . . . Bothacking | -11 -10 -9 -8 -8 -8 -8 -7 -7 -7 -7 -6 -6 -6 -6 -6 -6 -5 -5 ------------ Run | Scr Mat Mat Mat Gar Mat Gar Fac Was Fac Gar Fac Gar Fac Low Low Dat Pro Fac Used RIF Installer 4 | . . . . 1 . 1 . . . 1 . 1 . . . . . . Signal Jammer 1 | . . . . . . . . . . . . 1 . . . . . . Alert ID Control 1 | . . . . . . . . . . 1 . . . . . . . . Program Shield 1 | . . . . . . 1 . . . . . . . . . . . . Robots Hacked 56 | . . . . . 3 10 6 . 3 7 12 6 4 1 2 . 2 . Non-combat 13 | . . . . . 1 . 4 . 2 . 5 . 1 . . . . . Combat 43 | . . . . . 2 10 2 . 1 7 7 6 3 1 2 . 2 . Robot Hacks Applied 61 | . . . . . 3 10 8 . 4 8 13 6 4 1 2 . 2 . parse_system 11 | . . . . . . 1 . . 1 2 2 2 1 1 1 . . . generate_anomaly 1 | . . . . . . . . . 1 . . . . . . . . . start_evac 2 | . . . . . . . 1 . 1 . . . . . . . . . map_walls 1 | . . . . . . . 1 . . . . . . . . . . . locate_stockpiles 1 | . . . . . . . 1 . . . . . . . . . . . check_alert 1 | . . . . . 1 . . . . . . . . . . . . . block_reporting 1 | . . . . . . . . . . . . . 1 . . . . . map_route 1 | . . . . . . . . . . . 1 . . . . . . . mark_security 2 | . . . . . . . 1 . . . 1 . . . . . . . relay_feed 1 | . . . . . . . . . . . 1 . . . . . . . link_fov 1 | . . . . . . . . . . . 1 . . . . . . . mark_system 1 | . . . . . . 1 . . . . . . . . . . . . disrupt_area 1 | . . . . . . . . . . 1 . . . . . . . . wipe_record 1 | . . . . . . . . . . . . . . . . . 1 . go_dormant 3 | . . . . . . 1 . . . . 1 1 . . . . . . streamctrl_high 4 | . . . . . . 2 . . . 2 . . . . . . . . formatsys_low 5 | . . . . . . . 2 . 1 . 2 . . . . . . . formatsys_high 23 | . . . . . 2 5 2 . . 3 4 3 2 . 1 . 1 . Relay Couplers Released 37 | . . . . 8 4 11 . . . 3 4 7 . . . . . . Machine Destruction 29 | . . . . 8 . 11 . . . 3 . 7 . . . . . . Programmers 8 | . . . . . 4 . . . . . 4 . . . . . . . Attached 20 | . . . . 1 1 5 2 . 3 2 3 3 . . . . . . Robots Rewired . | . . . . . . . . . . . . . . . . . . . Allies Hacked . | . . . . . . . . . . . . . . . . . . . Hacks Repelled . | . . . . . . . . . . . . . . . . . . . Allies | -11 -10 -9 -8 -8 -8 -8 -7 -7 -7 -7 -6 -6 -6 -6 -6 -6 -5 -5 -------- Run | Scr Mat Mat Mat Gar Mat Gar Fac Was Fac Gar Fac Gar Fac Low Low Dat Pro Fac Total Allies 37 | . . . . . 2 7 4 1 1 5 6 3 5 . 1 . 2 . Largest Group 4 | . . . . . 1 4 4 1 1 3 4 2 4 4 3 3 4 . Highest-Rated Group 199 | . . . . . 16 50 67 31 9 40 66 53 131 131 105 105 199 . Highest-Rated Ally 94 | . . . . . 16 18 32 31 9 16 41 41 41 41 41 41 94 . Total Orders 18 | . . . . . 2 8 . . 2 . 5 . . . . . 1 . FOLLOW 5 | . . . . . . 3 . . 1 . 1 . . . . . . . GUARD 4 | . . . . . 1 2 . . . . 1 . . . . . . . AID 6 | . . . . . 1 3 . . . . 1 . . . . . 1 . TUNNEL 2 | . . . . . . . . . . . 2 . . . . . . . PICKUP 1 | . . . . . . . . . 1 . . . . . . . . . Ally Attacks 195 | . . . . . 3 45 6 4 . 21 44 4 15 20 3 . 30 . Total Damage 4120 | . . . . . 20 853 95 66 . 255 700 167 301 469 126 . 1068 . Kills 26 | . . . . . . 7 1 . . 2 3 1 3 3 . . 6 . Allies Corrupted 1 | . . . . . . . . . . . 1 . . . . . . . Allies Melted . | . . . . . . . . . . . . . . . . . . . Intel | -11 -10 -9 -8 -8 -8 -8 -7 -7 -7 -7 -6 -6 -6 -6 -6 -6 -5 -5 ------- Run | Scr Mat Mat Mat Gar Mat Gar Fac Was Fac Gar Fac Gar Fac Low Low Dat Pro Fac Robot Analysis Total 1 | . . . . . . . . . . . 1 . . . . . . . Derelict Logs Recovered 4 | . . . . . . . . . . . . . . 3 1 . . . Drone Launches . | . . . . . . . . . . . . . . . . . . . Drone Recoveries . | . . . . . . . . . . . . . . . . . . . Exploration | -11 -10 -9 -8 -8 -8 -8 -7 -7 -7 -7 -6 -6 -6 -6 -6 -6 -5 -5 ------------- Run | Scr Mat Mat Mat Gar Mat Gar Fac Was Fac Gar Fac Gar Fac Low Low Dat Pro Fac Turns Passed 8702 | . 645 686 255 638 240 665 1027 146 804 127 660 340 471 391 268 58 726 555 Spaces Moved 6800 | 1 419 283 90 256 95 320 490 140 762 174 922 451 449 502 285 78 808 275 Core 504 | . 3 . . . . . . 94 85 . . . . . . . 293 29 Treads 1667 | . 153 272 90 256 95 320 415 . . . . . . . . . 66 . Legs 537 | 1 263 11 . . . . 75 46 141 . . . . . . . . . Wheels 40 | . . . . . . . . . . . . . . . . . . 40 Hover 4043 | . . . . . . . . . 536 174 922 451 449 502 285 78 449 197 Flight 9 | . . . . . . . . . . . . . . . . . . 9 Fastest Speed 50 | 120 120 160 180 180 180 172 172 50 50 56 52 58 58 58 58 58 50 66 Average Speed 98 | 120 141 173 196 213 180 173 182 95 74 56 54 59 58 58 58 58 72 124 Slowest Speed 550 | 120 550 180 200 220 180 180 240 180 150 56 120 150 58 66 58 58 450 400 Overloaded Moves . | . . . . . . . . . . . . . . . . . . . Propulsion Burnouts . | . . . . . . . . . . . . . . . . . . . Robots Hopped . | . . . . . . . . . . . . . . . . . . . Cave-ins Triggered . | . . . . . . . . . . . . . . . . . . . Exploration Rate (%) 40 | 2 57 31 13 46 9 59 17 83 20 44 21 52 12 75 65 74 73 11 Regions Visited 18 Branch Regions 4 Pre-discovered Areas 2 | . . . . . . . . . . . . . . 1 . 1 . . Known Exits Taken 12 | 1 1 1 1 . 1 . . . 1 . 1 . 1 1 1 1 1 . Unknown Exits Taken . | . . . . . . . . . . . . . . . . . . . Scrap Searched 5 | . . . . . . . . . . . . . . 4 1 . . . Spaces Dug . | . . . . . . . . . . . . . . . . . . . Terrain Destroyed 308 | . 7 4 75 18 . 20 40 . . . . 62 . . . . . 82 Melee . | . . . . . . . . . . . . . . . . . . . Projectile 1 | . . . . . . . 1 . . . . . . . . . . . AOE 307 | . 7 4 75 18 . 20 39 . . . . 62 . . . . . 82 Terrain Rammed . | . . . . . . . . . . . . . . . . . . . Walls Destroyed . | . . . . . . . . . . . . . . . . . . . Machines Disabled . | . . . . . . . . . . . . . . . . . . . Actions | -11 -10 -9 -8 -8 -8 -8 -7 -7 -7 -7 -6 -6 -6 -6 -6 -6 -5 -5 --------- Run | Scr Mat Mat Mat Gar Mat Gar Fac Was Fac Gar Fac Gar Fac Low Low Dat Pro Fac Total 8253 | . 452 375 131 303 148 393 581 149 961 197 1055 495 655 580 381 90 906 401 Wait 626 | . 2 . . . 27 17 10 1 123 11 54 . 178 54 89 13 40 7 Move 6785 | . 418 282 90 254 95 319 490 139 762 173 921 450 448 501 284 77 807 275 Hop . | . . . . . . . . . . . . . . . . . . . Pick Up 130 | . 9 10 7 7 6 5 19 1 14 1 11 3 9 3 . . 7 18 Fast Attach 24 | . 5 . . . . . 1 1 6 1 2 3 . 1 . . 4 . Attach 91 | . 5 6 3 5 1 4 18 3 6 . 5 3 . 1 . . 12 19 Detach 5 | . . . . . . . 1 . 1 . . . . . . . 1 2 Swap 74 | . 3 7 5 6 4 9 7 . 7 1 6 4 5 4 1 . 3 2 Drop 43 | . 1 3 2 . 1 3 2 1 9 1 7 1 6 2 . . 2 2 Fire 402 | . 9 67 24 24 11 14 25 3 33 9 35 26 8 11 7 . 27 69 Melee 22 | . . . . . 3 10 8 . . . . . . . . . 1 . Ram 6 | . . . . . . . . . . . . . 1 . . . . 5 Kick . | . . . . . . . . . . . . . . . . . . . Crush . | . . . . . . . . . . . . . . . . . . . Escape Stasis 37 | . . . . 6 . 12 . . . . 14 5 . . . . . . Rewire 8 | . . . . 1 . . . . . . . . . 3 . . 2 2 Trap . | . . . . . . . . . . . . . . . . . . . Miscellaneous . | . . . . . . . . . . . . . . . . . . . Route ------- -11/Scrapyard -10/Materials (discovered 2 exits: *Mat x2) -9/Materials (discovered 4 exits: *Mat x3 / *Min) -8/Materials -8/Garrison -8/Materials -8/Garrison -7/Factory -7/Waste -7/Factory (discovered 2 exits: *Low / Gar) -7/Garrison -6/Factory (discovered 5 exits: Low x2 / Ext x2 / Gar) -6/Garrison -6/Factory -6/Lower Caves -6/Lower Caves (discovered 2 exits: *Fac / *Dat) -6/Data Miner -5/Proximity Caves -5/Factory History --------- Turn | Location | Event 1 | -11/Scrapyard | Identified exit to Materials 1 | -11/Scrapyard | Discovered exit to Materials (range 0) 1 | -11/Scrapyard | Entered Materials 1 | -10/Materials | Evolved 1 slot: Utility x1 191 | -10/Materials | Identified exit to Materials 191 | -10/Materials | Discovered exit to Materials (range 10) 313 | -10/Materials | Build established: Hacker-Mutant 478 | -10/Materials | Discovered exit to Materials (range 15) 646 | -10/Materials | Entered another Materials area 646 | -9/Materials | Evolved 2 slots: Utility x2 1042 | -9/Materials | Identified exit to Mines 1042 | -9/Materials | Discovered exit to Mines (range 11) 1256 | -9/Materials | Identified exit to Materials 1332 | -9/Materials | Entered another Materials area 1332 | -8/Materials | Evolved 2 slots: Utility x2 1587 | -8/Materials | Identified exit to Garrison 1587 | -8/Materials | Entered Garrison 1616 | -8/Garrison | Triggered checkpoint 1672 | -8/Garrison | Garrison Relay disabled 1772 | -8/Garrison | Triggered checkpoint 1840 | -8/Garrison | Lost 5 parts (1p1n2u1w) 1892 | -8/Garrison | Triggered checkpoint 1988 | -8/Garrison | Triggered checkpoint 2012 | -8/Garrison | Garrison Relay disabled 2180 | -8/Garrison | Identified exit to Materials 2180 | -8/Garrison | Discovered exit to Materials (range 10) 2210 | -8/Garrison | Installed Relay Interface Framework 2225 | -8/Garrison | Entered Materials 2410 | -8/Materials | P-60 Hacker assimilated allied Trooper 3b 2465 | -8/Materials | Identified exit to Garrison 2465 | -8/Materials | Entered Garrison 2474 | -8/Garrison | Expanded RIF knowledge: Program Shield 2514 | -8/Garrison | Triggered checkpoint 2594 | -8/Garrison | Garrison Relay disabled 2628 | -8/Garrison | Build established: Bothacker-Mutant 2759 | -8/Garrison | Garrison Relay disabled 2848 | -8/Garrison | Triggered checkpoint 2909 | -8/Garrison | Core integrity fell below 50% 2950 | -8/Garrison | Triggered checkpoint 3028 | -8/Garrison | Triggered checkpoint 3051 | -8/Garrison | Garrison Relay disabled 3108 | -8/Garrison | Identified exit to Factory 3108 | -8/Garrison | Discovered exit to Factory (range 14) 3130 | -8/Garrison | Entered Factory 3130 | -7/Factory | Evolved 2 slots: Utility x2 3199 | -7/Factory | Lost 4 parts (1p1n2w) 3215 | -7/Factory | Build established: Hacker-Mutant 3552 | -7/Factory | Build established: Bothacker-Mutant 3634 | -7/Factory | Lost 5 parts (3n2w) 3860 | -7/Factory | Build established: Hacker-Mutant 3952 | -7/Factory | Lost 3 parts (1n1u1w) 4157 | -7/Factory | Sucked down chute 4157 | -7/Factory | Entered Waste 4158 | -7/Waste | Met a frightened Derelict 4193 | -7/Waste | Spotted C-40 Crusher 4193 | -7/Waste | Spotted C-40 Crusher 4197 | -7/Waste | Spotted C-40 Crusher 4223 | -7/Waste | Spotted C-40 Crusher 4227 | -7/Waste | Spotted C-40 Crusher 4231 | -7/Waste | Crushed by Compactor (1 part destroyed, 1 dropped) 4234 | -7/Waste | Crushed by Compactor (1 part destroyed, 1 dropped) 4237 | -7/Waste | Crushed by Compactor (1 part destroyed, 2 dropped) 4242 | -7/Waste | Crushed by Compactor (1 part destroyed, 1 dropped) 4243 | -7/Waste | Spotted C-40 Crusher 4264 | -7/Waste | Found Prototype Launcher 4264 | -7/Waste | Identified Mni. Smartbomb Launcher 4273 | -7/Waste | Lost 4 parts (3n1w) 4277 | -7/Waste | Identified exit to Factory 4277 | -7/Waste | Discovered exit to Factory (range 12) 4303 | -7/Waste | Entered Factory 4471 | -7/Factory | Fabricated Dynamic Insulation System (x2) 4553 | -7/Factory | Identified exit to Lower Caves 4553 | -7/Factory | Discovered exit to Lower Caves (range 7) 4981 | -7/Factory | Build established: Bothacker-Mutant 5107 | -7/Factory | Identified exit to Garrison 5107 | -7/Factory | Entered Garrison 5110 | -7/Garrison | Expanded RIF knowledge: Alert ID Control 5138 | -7/Garrison | Triggered checkpoint 5158 | -7/Garrison | Triggered checkpoint 5176 | -7/Garrison | Triggered checkpoint 5183 | -7/Garrison | Garrison Relay disabled 5214 | -7/Garrison | Identified exit to Factory 5214 | -7/Garrison | Discovered exit to Factory (range 10) 5234 | -7/Garrison | Entered Factory 5234 | -6/Factory | Accompanied by 2 allies 5234 | -6/Factory | Evolved 2 slots: Propulsion x1, Utility x1 5266 | -6/Factory | Identified exit to Lower Caves 5266 | -6/Factory | Identified exit to Extension 5325 | -6/Factory | Spotted B-75 Beast 5859 | -6/Factory | Garrison activated, responded to threat 5887 | -6/Factory | Identified exit to Garrison 5894 | -6/Factory | Entered Garrison 5894 | -6/Garrison | Accompanied by 1 ally 5966 | -6/Garrison | Triggered checkpoint 5982 | -6/Garrison | Triggered checkpoint 5989 | -6/Garrison | Garrison Relay disabled 6027 | -6/Garrison | Identified exit to Factory 6027 | -6/Garrison | Discovered exit to Factory (range 8) 6035 | -6/Garrison | Expanded RIF knowledge: Signal Jamming 6068 | -6/Garrison | Triggered checkpoint 6142 | -6/Garrison | Garrison Relay disabled 6148 | -6/Garrison | Triggered checkpoint 6234 | -6/Garrison | Entered Factory 6401 | -6/Factory | Fabricated G-50 Soldier (x3) 6561 | -6/Factory | Discovered exit to Lower Caves (range 22) 6705 | -6/Factory | Entered Lower Caves 6705 | -6/Lower Caves | Accompanied by 4 allies 6803 | -6/Lower Caves | Identified exit to Lower Caves 6829 | -6/Lower Caves | Spotted B-75 Beast 6895 | -6/Lower Caves | Learned location of Extension (-6) 6952 | -6/Lower Caves | Learned location of 1 exit from Lower Caves 7096 | -6/Lower Caves | Entered another Lower Caves area 7096 | -6/Lower Caves | Accompanied by 2 allies 7097 | -6/Lower Caves | Identified exit to Data Miner 7135 | -6/Lower Caves | Learned Factory trap positions 7160 | -6/Lower Caves | Identified exit to Factory 7160 | -6/Lower Caves | Discovered exit to Factory (range 8) 7168 | -6/Lower Caves | Attracted the attention of an 0b10 checkpoint 7364 | -6/Lower Caves | Entered Data Miner 7364 | -6/Data Miner | Accompanied by 3 allies 7364 | -6/Data Miner | Identified exit to Proximity Caves 7364 | -6/Data Miner | Discovered exit to Proximity Caves (range 6) 7372 | -6/Data Miner | Met Data Miner 7386 | -6/Data Miner | Learned location of Section 7 (-2) 7386 | -6/Data Miner | Acquired the access code to Warlord's prototype stash 7395 | -6/Data Miner | Received God Mode back door access code from Data Miner 7422 | -6/Data Miner | Entered Proximity Caves 7422 | -5/Proximity Caves | Accompanied by 3 allies 7496 | -5/Proximity Caves | Escorted by Enhanced Grunt 7573 | -5/Proximity Caves | Spotted B-75 Beast 7596 | -5/Proximity Caves | Allies destroyed B-75 Beast 7701 | -5/Proximity Caves | Found Prototype Device 7734 | -5/Proximity Caves | Lost 6 parts (1p2n2u1w) 7742 | -5/Proximity Caves | Identified Exp. Thermal Shield 7781 | -5/Proximity Caves | Core integrity fell below 50% 7809 | -5/Proximity Caves | Lost 7 parts (1p2n2u2w) 7960 | -5/Proximity Caves | Core integrity fell below 20% 7980 | -5/Proximity Caves | Lost 5 parts (1n2u2w) 7982 | -5/Proximity Caves | Build established: Hacker-Mutant 8136 | -5/Proximity Caves | Discovered exit to Factory (range 16) 8148 | -5/Proximity Caves | Entered Factory 8148 | -5/Factory | Evolved 2 slots: Utility x2 8149 | -5/Factory | Loaded intel: 112 trap records 8274 | -5/Factory | Lost 4 parts (1p1n1u1w) 8394 | -5/Factory | Garrison activated, responded to threat 8471 | -5/Factory | Core integrity fell below 50% 8501 | -5/Factory | Core integrity fell below 20% 8518 | -5/Factory | Lost 9 parts (1n5u3w) 8703 | -5/Factory | Destroyed self via exploding Nuclear Reactor Last Messages --------------- 08655_ R-10 Processor collects Imp. Ion Engine. 08657_ R-10 Processor collects Med. Storage Unit. 08658_ Acquired Com. Wheel. 08659_ R-10 Processor collects Hpw. Tractor Beam. 08660_ Slug penetrates R-10 Processor. 08662_ Destroyed Hpw. Tractor Beam. 08662_ R-10 Processor distress signal alerts nearby ally. 08663_ M-28 Smith distress signal alerts nearby ally. 08665_ Acquired 28 matter. 08666_ U-05 Engineer builds a Wall. 08672_ Slug penetrates Wall. 08675_ R-10 Processor collects Imp. Terrain Scanner. 08675_ U-05 Engineer lays Concrete. 08677_ Penetrated by Slug. 08678_ Detecting nearby Garrison Access. 08683_ Slug penetrates Wall. 08699_ Slug penetrates Nuclear Reactor. 08703_ Nuclear Reactor explodes. 08703_ S-27 Virus destroyed. 08703_ Nuclear Reactor explodes. Map ----- +----------------------------------------------------+ | ???????????????????#%^ #??????????? | | ???????????????????#% #??????????? | | ???????????????????# #??????????? ]]] | | ???????????????????# #??????????? ]]] | | ???????????????????# #????????????????? | | ???????????????????# #????????????????? | | ???????????????????# #????????????????? | | ???????????????????# #????????????????? | | ???????????????????# #????????????????? | | ???????????????????# #????????????????? | | ???????????????????# #????????????????? | | ???????????????????# #????????????????? | | ?????????????"?????#"##;#########????????????????? | | ????????????""" ??# #????????????????? | | ??????????""""" # #######??????????? | | ??????? + ??????????? | | ^^?^^^? # ######???????????? | | ??????? ?# k #????????????????? | | ?????????! ""??#####;## #????????????????? | | ?????????? ???# # #????????????????? | | ?????????? ? ????# s #? #????????????????? | | ???????????????????# # #????????????????? | | ???????????????????# =*# #????????????????? | | ???????????????????# %[+ #????????????????? | | ???????????????????# %s# #????????????????? | | ???????????????????# @# #????????????????? | | ???????????????????# #? #????????????????? | | ???????????????????# #? #????????????????? | | ???????????????????# #?? #????????????????? | | ???????????????????# """ #?? #????????????????? | | ???????????????????# """ =#??? +????????????????? | | ???????????????????# """ #??? # ???????????????? | | ???????????????????# !#???? # !??????????????? | | ???????????????????#??#####???? #?##?????????????? | | ???????????????????????????????? ????????????????? | | ???????????????????????????????? ????????????????? | | ????????????????????????????????? ???????????????? | | ?????????????????????????????????????????????????? | | ?????????????????????????????????????????????????? | | ?????????????????????????????????????????????????? | | ?????????????????????????????????????????????????? | | ?????????????????????????????????????????????????? | | ?????????????????????????????????????????????????? | | ?????????????????????????????????????????????????? | | ????^^???????????????????????????????????????????? | | ????^^???????????????????????????????????????????? | | ?????????????????????????????????????????????????? | | ?????????????????????????????????????????????????? | | ?????????????????????????????????????????????????? | | ?????????????????????????????????????????????????? | +----------------------------------------------------+ Best States ------------- Heat Dissipation 67 Energy Generation 21 Energy Capacity 325 Matter Stores 300 Matter Capacity 300 Sight Range 22 Robot Scan Range 16 Terrain Scan Range 24 Terrain Scan Density 60 Additional Mass Support 6 Armor Coverage 375 Resistance: KI 35 Resistance: TH 65 Resistance: EX 35 Resistance: EM 35 Resistance: I 35 Resistance: S 35 Resistance: P 35 Power Shielding 33 Evasion (%) 54 Targeting Accuracy 5 Recoil Reduction 2 Offensive Hacking 30 Defensive Hacking 22 Relay Coupler Types 249 Relay Coupler Value 6 Item Schematics ----------------- Sensor Array | -9/Materials | Scanalyzed Hcp. Storage Unit | -9/Materials | Scanalyzed Imp. Remote Datajack | -7/Factory | Scanalyzed Combat Drone Bay | -6/Data Miner | Free Lgt. Regenerative Plating | -6/Data Miner | Free Exp. Flexi-carbon Leg | -6/Data Miner | Free Exp. Sensor Array | -6/Data Miner | Free Exp. Terrain Scanner | -6/Data Miner | Free Exp. Terrain Scan Processor | -6/Data Miner | Free Exp. Targeting Computer | -6/Data Miner | Free Exp. ECM Suite | -6/Data Miner | Free Robot Schematics ------------------ S-27 Virus | -6/Data Miner | Free G-50 Soldier | -6/Data Miner | Free L-41 Fighter | -6/Data Miner | Free X-72 Disruptor | -6/Data Miner | Free H-66 Slayer | -6/Data Miner | Free I-36 Angel | -6/Data Miner | Free Fabricated ------------ Dynamic Insulation System | x2 | -7/Factory | Preloaded G-50 Soldier | x3 | -6/Factory | Preloaded Alien Tech Used ----------------- None Achievements -------------- Assimilation Complete Infiltrator Use The Force Challenges ------------ None Game ------ Seed FlyingHellfireRegenerator Manual? 0 Play Time 02:07:41 Cumulative 21.3 hours Start 2021.02.05 @ 13:12:00 End 2021.02.05 @ 19:31:14 Sessions 3 Manual Loads 0 Difficulty Explorer Special Mode None Game No. 11 Rogue 0 Adventurer 7 Explorer 4 Win Type - Total 0 Types 0/0/0/0/0/0/0/0/0 Lore% 18 Gallery% 33 Achievement% 26 Wizard Run 0 Options --------- ASCII 0 Keyboard 0 Movement Mouse Keybinds 0 Fullscreen 2 Font 18/SmallcapsGlow Map View 76x50 Tactical HUD 1 Map Filters NONE Filters NONE Steam 1 RUN: 40214adc-7eee-4b61-94a9-0be2dfbf33b0